bitfinex-derivatives/quotes_ETHF0:USTF0_20251001
["timestamp","ask_amount","ask_price","bid_price","bid_amount"]
[1759333027996,3.2078,4341.4,4340.8,0.6978]
[1759333028302,3.2078,4341.4,4341.2,0.4588]
[1759333028303,0.4628,4341.3,4341.2,0.4588]
[1759333028600,0.4628,4341.3,4341.2,0.6978]
[1759333029604,3.20998211,4341.9,4341.5,0.1092]
[1759333029812,1.0885,4341.8,4341.1,0.1092]
[1759333030111,0.5135,4341.5,4341.4,0.1748]
[1759333030312,0.5135,4341.5,4341.4,0.239]
[1759333030313,0.8259,4341.5,4341.4,0.239]
[1759333030901,0.8259,4341.5,4340.4,3.2078]
[1759333031204,3.2078,4341.4,4340.4,3.2078]
[1759333031410,0.4628,4341.3,4340.5,0.239]
[1759333031607,0.8259,4341.0,4340.9,0.1748]
[1759333031796,0.9754,4340.5,4340.4,3.5574]
[1759333032001,0.9754,4340.5,4340.4,3.7964]
[1759333032299,0.9754,4340.5,4340.4,3.5574]
[1759333032507,0.9754,4340.5,4340.4,3.7964]
[1759333032912,0.4628,4340.8,4340.7,0.4588]
[1759333033110,0.4628,4340.8,4340.7,0.3496]
[1759333033405,0.9754,4340.0,4339.9,0.1748]
[1759333033602,0.7752,4339.9,4339.8,0.00288415]
[1759333033804,1.0885,4339.9,4339.8,0.17768415]
[1759333034010,1.0885,4339.9,4339.8,0.41668415]
[1759333034512,1.0885,4339.9,4339.8,0.00288415]
[1759333034710,1.0885,4339.9,4339.8,0.24188415]
[1759333035401,4.2963,4339.9,4339.8,0.24188415]
[1759333036006,4.2963,4339.9,4339.8,0.59148415]
[1759333036208,0.4628,4339.8,4338.7,0.1092]
[1759333036405,0.2002,4340.0,4338.7,0.1092]
[1759333036406,0.7752,4338.8,4338.7,0.1748]
[1759333036604,1.0885,4338.8,4338.7,40.9748]
[1759333036806,1.0885,4338.8,4338.7,41.2148]
[1759333037210,1.09054822,4338.8,4338.7,41.21762492]
[1759333037514,0.46484822,4338.8,4338.7,41.32682492]
[1759333037908,0.46484822,4338.8,4338.7,41.21762492]
[1759333039213,0.46484822,4338.8,4338.7,41.32682492]
[1759333040011,0.46484822,4338.8,4338.7,40.97762492]
[1759333040318,0.46484822,4338.8,4338.7,41.36772492]
[1759333040712,0.46484822,4338.8,4338.7,41.12872492]
[1759333040919,0.46484822,4338.8,4338.7,41.36772492]
[1759333041219,0.00204822,4338.8,4338.7,41.36772492]
[1759333041415,3.2078,4339.4,4339.3,0.477]
[1759333041614,3.6962,4339.4,4339.3,0.865]
[1759333042014,4.0442,4339.4,4339.3,0.716]
[1759333042515,4.04602837,4339.4,4339.3,0.477]
[1759333042715,4.04602837,4339.4,4339.3,0.716]
[1759333042917,4.37942837,4339.4,4339.3,0.477]
[1759333043218,4.37942837,4339.4,4339.3,0.239]
[1759333043419,4.37942837,4339.4,4339.3,0.4775]
[1759333043720,4.37942837,4339.4,4339.3,0.2385]
[1759333044022,0.8881,4339.0,4338.9,0.2356]
[1759333044323,0.8881,4339.0,4338.9,0.4746]
[1759333044520,0.5253,4339.3,4339.2,0.4712]
[1759333044712,0.5253,4339.3,4339.2,0.8575]
[1759333045321,0.8689,4339.3,4339.2,0.7102]
[1759333046026,1.2145,4339.3,4339.2,0.4712]
[1759333046221,1.2145,4339.3,4339.2,0.4746]
[1759333046431,1.2145,4339.3,4339.2,0.239]
[1759333046821,0.8689,4338.8,4338.7,76.74382492]
[1759333047021,0.8689,4338.8,4338.7,76.98282492]
[1759333047525,0.5253,4338.8,4338.7,77.13012492]
[1759333047918,0.5253,4338.8,4338.7,76.98282492]
[1759333048523,0.5253,4338.8,4338.7,41.04182492]
[1759333048826,0.5253,4338.8,4338.7,40.80282492]
[1759333049024,1.2145,4338.8,4338.7,0.47742492]
[1759333049528,1.2145,4338.8,4338.7,0.71302492]
[1759333049726,1.2145,4338.8,4338.7,0.47402492]
[1759333049926,1.2145,4338.8,4338.7,0.00282492]
[1759333050128,1.2145,4338.8,4338.7,0.24182492]
[1759333052129,1.2145,4338.8,4338.7,0.47742492]
[1759333052331,1.2145,4338.8,4338.7,0.71302492]
[1759333053127,1.2145,4338.8,4338.7,0.47742492]
[1759333053529,1.2145,4338.8,4338.7,0.00282492]
[1759333053726,1.2145,4338.8,4338.7,0.24182492]
[1759333056225,0.5253,4338.8,4338.7,0.71302492]
[1759333056431,0.8689,4339.3,4339.2,0.4712]
[1759333056630,0.5253,4339.3,4339.2,0.8575]
[1759333056935,0.00182837,4339.4,4339.3,0.6185]
[1759333057439,0.87072837,4339.4,4339.3,77.4552]
[1759333057625,0.87072837,4339.4,4339.3,41.0356]
[1759333057831,0.52712837,4339.4,4339.3,41.2746]
[1759333058132,0.52712837,4339.4,4339.3,41.4219]
[1759333058436,0.00182837,4339.4,4339.3,41.4219]
[1759333059441,0.52712837,4339.4,4339.3,41.0356]
[1759333059631,0.52712837,4339.4,4339.3,77.2186]
[1759333060339,0.52712837,4339.4,4339.3,77.3659]
[1759333061442,0.2002,4340.0,4339.9,0.41446]
[1759333061642,0.8894,4340.0,4339.9,1.82806]
[1759333061938,3.2078,4340.4,4340.3,0.41442]
[1759333062142,3.897,4340.4,4340.3,1.82802]
[1759333062445,3.55343944,4340.4,4340.3,1.82802]
[1759333062638,9.44e-06,4340.4,4340.3,1.82802]
[1759333064844,9.44e-06,4340.4,4340.3,42.62802]
[1759333068142,9.44e-06,4340.4,4340.3,78.56702]
[1759333071360,0.3436,4341.4,4341.3,1.1746]
[1759333071558,0.3436,4341.4,4341.3,1.4136]
[1759333071753,3.5503,4341.9,4341.8,1.25599]
[1759333071960,3.8928,4341.9,4341.8,1.49499]
[1759333072355,3.89464736,4341.9,4341.8,1.49679722]
[1759333072557,3.89464736,4341.9,4341.8,1.82969722]
[1759333072860,3.06633736,4341.9,4341.8,1.82969722]
[1759333073058,0.34434736,4341.9,4341.8,1.82969722]
[1759333073361,7.36e-06,4341.9,4341.8,1.82969722]
[1759333074956,7.36e-06,4341.9,4341.8,1.59069722]
[1759333075554,7.36e-06,4341.9,4341.8,1.82969722]
[1759333076060,2.64339736,4342.4,4342.0,1.03567]
[1759333076259,3.2298,4342.9,4342.8,0.41419]
[1759333076556,3.2298,4342.9,4342.8,0.94529]
[1759333076760,3.2298,4342.9,4342.8,1.53639]
[1759333076951,0.022,4342.9,4342.8,1.87809]
[1759333077260,0.02407424,4342.9,4342.8,1.53639]
[1759333077463,0.02407424,4342.9,4342.8,1.18429]
[1759333079264,0.02407424,4342.9,4342.8,1.53639]
[1759333079563,0.02407424,4342.9,4342.8,1.87809]
[1759333079958,3.2078,4343.4,4342.8,1.87809]
[1759333079959,3.2078,4343.4,4343.3,1.63904]
[1759333080264,2.72273,4343.4,4343.3,1.87804]
[1759333080660,3.2078,4343.9,4343.6,0.3521]
[1759333080866,3.2078,4343.9,4343.8,0.5311]
[1759333081165,3.21026906,4343.9,4343.8,0.5311]
[1759333081464,8.21026906,4343.9,4343.8,0.8832]
[1759333081659,3.21026906,4343.9,4343.8,0.8832]
[1759333081966,8.21026906,4343.9,4343.7,0.239]
[1759333082158,3.21026906,4343.9,4343.8,0.41409]
[1759333082655,3.21026906,4343.9,4343.4,1.03534]
[1759333082859,5.0,4343.8,4343.5,0.733]
[1759333083056,5.0,4343.8,4343.7,0.94519]
[1759333083254,3.21026906,4343.9,4343.8,0.5311]
[1759333084264,8.21026906,4343.9,4343.7,0.41409]
[1759333084767,8.21026906,4343.9,4343.7,0.94519]
[1759333085160,8.21026906,4343.9,4343.8,0.41409]
[1759333086057,8.21026906,4343.9,4343.8,0.94519]
[1759333087371,8.72653454,4343.9,4343.8,0.94519]
[1759333087666,8.72653454,4343.9,4343.8,0.41409]
[1759333087867,3.21026906,4343.9,4343.8,0.94519]
[1759333088865,3.21026906,4343.9,4343.8,1.63899]
[1759333089260,0.00246906,4343.9,4343.8,1.63899]
[1759333091172,0.00246906,4343.9,4343.8,1.29729]
[1759333091371,0.00246906,4343.9,4343.8,1.87799]
[1759333094870,3.2078,4344.9,4343.8,1.4639]
[1759333095067,3.2078,4344.9,4344.8,1.63889]
[1759333095268,3.72476334,4344.9,4344.8,1.87789]
[1759333095970,3.72752493,4344.9,4344.8,1.87789]
[1759333096276,3.72752493,4344.9,4344.8,1.63889]
[1759333096669,3.72752493,4344.9,4344.8,1.29719]
[1759333096864,3.72752493,4344.9,4344.8,0.94509]
[1759333097775,3.72752493,4344.9,4344.8,1.29719]
[1759333097974,3.72752493,4344.9,4344.8,1.63889]
[1759333099776,0.51972493,4344.9,4344.8,1.63889]
[1759333100171,0.00276159,4344.9,4344.8,1.63889]
[1759333101477,0.52003387,4344.9,4344.8,1.63889]
[1759333102573,3.2078,4345.4,4345.0,1.23503]
[1759333102773,3.2078,4345.4,4345.3,1.61635]
[1759333103274,3.2078,4345.4,4345.3,1.85535]
[1759333103569,3.21038644,4345.4,4345.3,1.85805847]
[1759333106976,3.21038644,4345.4,4345.3,1.20510847]
[1759333107182,3.21038644,4345.4,4345.3,0.85590847]
[1759333108774,3.21038644,4345.4,4345.3,1.26984847]
[1759333108975,3.21038644,4345.4,4345.3,0.93574847]
[1759333109183,3.21038644,4345.4,4345.3,1.26174847]
[1759333109384,0.00258644,4345.4,4345.3,1.60714847]
[1759333109682,0.00258644,4345.4,4345.3,1.84614847]
[1759333113287,0.00258644,4345.4,4345.3,1.60714847]
[1759333113677,0.00258644,4345.4,4345.3,1.84614847]
[1759333113976,0.00258644,4345.4,4345.3,1.60714847]
[1759333114175,0.00258644,4345.4,4345.3,1.84614847]
[1759333114681,0.5172449,4345.4,4345.3,1.84614847]
[1759333116481,0.5172449,4345.4,4345.3,1.60714847]
[1759333116680,0.5172449,4345.4,4345.3,1.84614847]
[1759333118884,3.7250449,4345.4,4345.3,1.84614847]
[1759333119083,3.7250449,4345.4,4345.3,1.60714847]
[1759333119281,3.7250449,4345.4,4345.3,1.84614847]
[1759333120274,3.7250449,4345.4,4345.3,1.60714847]
[1759333120478,3.7250449,4345.4,4345.3,1.84614847]
[1759333121878,3.7250449,4345.4,4345.3,1.60714847]
[1759333122876,3.7250449,4345.4,4345.3,1.26174847]
[1759333123078,3.7250449,4345.4,4345.3,1.60714847]
[1759333125282,3.72650988,4345.4,4345.3,1.60714847]
[1759333129292,3.72650988,4345.4,4345.3,1.26174847]
[1759333129793,3.72650988,4345.4,4345.3,1.60714847]
[1759333130389,4.14043988,4345.4,4345.3,1.60714847]
[1759333130787,3.72650988,4345.4,4345.3,1.60714847]
[1759333133592,3.72650988,4345.4,4345.3,1.84614847]
[1759333134682,4.14043988,4345.4,4345.3,1.84614847]
[1759333135189,3.72650988,4345.4,4345.3,1.84614847]
[1759333137694,4.14043988,4345.4,4345.3,1.84614847]
[1759333139186,4.14043988,4345.4,4345.3,1.19320847]
[1759333139390,4.14043988,4345.4,4345.3,0.93574847]
[1759333139892,4.14043988,4345.4,4345.3,0.52180847]
[1759333140392,4.14043988,4345.4,4345.3,1.28764847]
[1759333140693,3.72650988,4345.4,4345.3,1.63244847]
[1759333141599,4.14043988,4345.4,4345.3,1.87144847]
[1759333141994,3.72650988,4345.4,4345.3,1.87144847]
[1759333143101,4.14043988,4345.4,4345.3,1.21850847]
[1759333143300,3.96550988,4345.4,4345.3,0.52180847]
[1759333143597,4.37944988,4345.4,4345.3,0.52180847]
[1759333143803,4.37944988,4345.4,4345.3,0.00270847]
[1759333144406,4.37944988,4345.4,4345.3,0.52450847]
[1759333144611,4.37944988,4345.4,4345.0,0.7219]
[1759333144612,0.41396,4345.1,4345.0,0.7219]
[1759333144806,0.76631,4344.6,4344.5,0.2019]
[1759333144998,0.3523,4344.1,4344.0,1.31267]
[1759333145506,0.51612344,4344.1,4344.0,1.31267]
[1759333145694,1.21602665,4344.5,4344.4,0.76593]
[1759333146504,1.21602665,4344.5,4344.4,1.11073]
[1759333146897,0.87482665,4344.5,4344.4,1.63253]
[1759333147106,0.52252665,4344.5,4344.4,1.63253]
[1759333150304,0.87482665,4344.5,4344.4,1.63253]
[1759333151605,0.52252665,4344.5,4344.4,1.63253]
[1759333151815,0.87482665,4344.5,4344.4,1.63253]
[1759333152106,0.52252665,4344.5,4344.4,1.63253]
[1759333152713,0.87482665,4344.5,4344.4,1.63253]
[1759333153712,1.21602665,4344.5,4344.4,1.63253]
[1759333154412,0.6935,4344.1,4344.0,1.83618668]
[1759333154611,1.21602665,4344.1,4344.0,1.83618668]
[1759333155506,0.52252665,4344.1,4344.0,1.83618668]
[1759333155805,0.87482665,4344.1,4344.0,1.83618668]
[1759333156813,1.21602665,4344.1,4344.0,1.83618668]
[1759333157714,1.21602665,4344.1,4344.0,1.49388668]
[1759333157918,0.52252665,4344.1,4344.0,1.83868668]
[1759333158618,0.87482665,4344.1,4344.0,1.83868668]
[1759333159311,1.50242665,4344.1,4344.0,0.41578668]
[1759333159519,1.21602665,4344.1,4344.0,1.49388668]
[1759333159717,1.21602665,4344.1,4344.0,1.83868668]
[1759333160108,1.49252665,4344.1,4344.0,1.83868668]
[1759333160313,1.21602665,4344.1,4344.0,1.83868668]
[1759333160509,0.87482665,4344.1,4344.0,1.83868668]
[1759333161014,1.22582665,4344.1,4344.0,1.83868668]
[1759333162515,1.22582665,4344.1,4344.0,1.82348668]
[1759333162823,0.52252665,4344.1,4344.0,1.82348668]
[1759333163321,0.85942665,4344.1,4344.0,1.82348668]
[1759333163521,1.18382665,4344.1,4344.0,1.82348668]
[1759333165818,0.85942665,4344.1,4344.0,1.82348668]
[1759333166411,0.52252665,4344.1,4344.0,1.82348668]
[1759333166814,0.84192665,4344.1,4344.0,1.82348668]
[1759333167826,1.16632665,4344.1,4344.0,1.82348668]
[1759333169920,0.84192665,4344.1,4344.0,1.82348668]
[1759333170527,0.52252665,4344.1,4344.0,1.82348668]
[1759333171024,0.6859,4343.0,4342.5,3.2078]
[1759333171324,0.6859,4343.0,4342.5,3.8804]
[1759333171325,0.8106,4342.6,4342.5,3.8804]
[1759333171524,1.33501403,4342.6,4342.5,3.8804]
[1759333171727,1.01561403,4342.6,4342.5,3.8804]
[1759333171922,0.52441403,4342.6,4342.5,3.88219656]
[1759333172520,0.4912,4342.6,4342.5,0.67439656]
[1759333172720,0.4912,4342.6,4342.5,0.91339656]
[1759333173129,0.4912,4342.6,4342.5,1.34109656]
[1759333174523,0.8106,4342.6,4342.5,1.10209656]
[1759333174826,0.4912,4343.0,4342.9,0.6726]
[1759333175022,1.02085474,4343.0,4342.9,1.1003]
[1759333175424,0.4912,4343.0,4342.9,1.1003]
[1759333176028,3.699,4343.3,4343.2,0.6726]
[1759333176331,4.87229477,4343.3,4343.2,0.6726]
[1759333176520,4.87229477,4343.3,4343.0,0.238]
[1759333176727,1.135,4343.1,4343.0,0.5744]
[1759333176925,1.66449477,4343.1,4343.0,0.5744]
[1759333177322,1.135,4343.1,4343.0,0.5744]
[1759333178032,1.135,4343.1,4343.0,0.9106]
[1759333179436,1.66439803,4343.1,4343.0,0.9106]
[1759333179936,1.135,4343.1,4343.0,0.9106]
[1759333180136,1.66439797,4343.1,4343.0,0.9106]
[1759333180733,1.135,4342.9,4342.8,0.238]
[1759333180932,1.135,4342.9,4342.8,0.5744]
[1759333181134,1.135,4342.9,4342.5,0.00179656]
[1759333181330,1.135,4342.9,4342.5,0.33819656]
[1759333181331,1.135,4342.6,4342.5,0.33819656]
[1759333181832,1.135,4342.6,4342.5,0.00179656]
[1759333181833,1.66448189,4342.6,4342.5,0.00179656]
[1759333183530,1.135,4342.1,4342.0,0.01125]
[1759333184238,1.135,4342.1,4342.0,0.34765]
[1759333184440,1.13666759,4342.1,4342.0,0.35030329]
[1759333185437,1.13666759,4342.1,4342.0,0.68650329]
[1759333185638,0.00166759,4342.1,4342.0,1.11420329]
[1759333186745,0.00166759,4342.1,4342.0,6.25680329]
[1759333187141,3.2078,4343.3,4343.1,1.0987]
[1759333187142,0.4912,4343.2,4343.1,1.0987]
[1759333187336,0.8106,4343.2,4343.1,0.7623]
[1759333187639,1.135,4343.1,4343.0,0.5744]
[1759333187834,1.135,4343.1,4342.7,40.8]
[1759333188034,1.135,4342.9,4342.8,0.238]
[1759333188341,1.135,4342.9,4342.8,0.3364]
[1759333188837,1.135,4342.9,4342.8,0.6726]
[1759333189135,1.135,4342.9,4342.8,1.0987]
[1759333189342,0.8106,4342.9,4342.8,1.0987]
[1759333189549,0.4912,4342.9,4342.8,1.0987]
[1759333190244,0.8106,4342.9,4342.8,1.0987]
[1759333190438,0.4912,4342.9,4342.8,1.0987]
[1759333190637,0.49365477,4343.1,4342.8,0.6726]
[1759333190940,0.49365477,4343.1,4343.0,1.0987]
[1759333191147,0.81305477,4343.1,4343.0,1.0987]
[1759333191543,1.13745477,4343.1,4343.0,0.6726]
[1759333192046,1.13745477,4343.1,4343.0,0.9106]
[1759333192243,1.13745477,4343.1,4343.0,0.6726]
[1759333192542,1.13745477,4343.1,4343.0,0.9106]
[1759333195843,1.13745477,4343.1,4343.0,0.6726]
[1759333198137,0.00245477,4343.1,4343.0,6.0963]
[1759333199849,0.00245477,4343.1,4343.0,46.8963]
[1759333202345,0.00245477,4343.1,4343.0,47.1343]
[1759333202849,0.52095477,4343.1,4343.0,41.8963]
[1759333203049,0.00245477,4343.1,4343.0,42.1343]
[1759333203240,0.7092,4343.0,4342.6,3.2078]
[1759333203442,0.5185,4343.0,4342.9,0.6825]
[1759333203649,0.5185,4343.0,4342.9,1.1062]
[1759333205552,0.5185,4343.0,4342.9,1.3442]
[1759333205949,0.00245477,4343.1,4343.0,1.1062]
[1759333206949,0.00245477,4343.1,4343.0,41.9062]
[1759333207755,0.8623,4342.7,4342.6,3.8903]
[1759333207944,0.1907,4343.0,4342.6,4.552]
[1759333208142,0.00245477,4343.1,4343.0,1.2464]
[1759333208349,0.00245477,4343.1,4343.0,1.4844]
[1759333210349,0.00245477,4343.1,4343.0,42.2844]
[1759333211251,4.77e-06,4343.1,4343.0,42.2844]
[1759333214457,0.51850477,4343.1,4343.0,42.1442]
[1759333214753,0.51850477,4343.1,4343.0,41.4825]
[1759333214959,0.51850477,4343.1,4343.0,41.7205]
[1759333216053,1.20160477,4343.1,4343.0,0.9205]
[1759333216259,1.20160477,4343.1,4343.0,0.5799]
[1759333217853,1.20160477,4343.1,4343.0,0.238]
[1759333221861,1.1643,4342.7,4342.6,3.5411]
[1759333222060,1.1643,4342.7,4342.6,3.7791]
[1759333222460,1.1643,4342.7,4342.6,3.5411]
[1759333222661,1.1643,4342.7,4342.6,4.1175]
[1759333223559,0.636,4342.2,4342.1,3.5369]
[1759333223757,1.1459,4342.2,4342.1,4.088]
[1759333224162,1.1459,4342.2,4342.1,4.4943]
[1759333224961,1.1459,4342.2,4342.1,3.2078]
[1759333225165,1.1459,4342.2,4342.1,4.088]
[1759333228357,0.822,4342.2,4342.1,4.4943]
[1759333229067,1.1459,4342.2,4342.1,4.088]
[1759333229366,1.1459,4342.2,4342.1,0.3291]
[1759333229564,1.1459,4342.2,4342.1,0.5671]
[1759333230065,1.1459,4342.2,4342.1,0.3291]
[1759333230261,1.1459,4342.2,4342.1,0.5671]
[1759333230467,1.1459,4342.2,4342.1,0.238]
[1759333230967,1.1459,4342.2,4342.1,0.5671]
[1759333231368,1.1459,4342.2,4342.1,0.3291]
[1759333231571,1.1459,4342.2,4342.0,0.00265329]
[1759333231862,1.1459,4342.2,4342.1,0.238]
[1759333232567,1.67755789,4342.2,4342.1,0.238]
[1759333232959,1.67755789,4342.2,4342.0,0.00265329]
[1759333233169,1.16766965,4342.1,4342.0,0.00265329]
[1759333233364,1.1459,4342.1,4342.0,0.00265329]
[1759333233867,1.1459,4342.1,4341.1,0.4063]
[1759333233868,1.1459,4341.2,4341.1,3.2078]
[1759333234269,1.1459,4341.2,4341.1,3.4458]
[1759333234573,1.1459,4341.2,4341.1,3.85]
[1759333234769,1.1459,4341.2,4341.1,4.09090313]
[1759333235664,1.1459,4341.2,4341.1,3.85290313]
[1759333235967,0.822,4341.2,4341.1,4.49980313]
[1759333236272,0.5099,4341.9,4341.3,1.0511]
[1759333236571,1.1459,4341.9,4341.8,0.3291]
[1759333236871,1.1459,4341.9,4341.8,0.5671]
[1759333237062,1.1459,4341.9,4341.3,0.4089]
[1759333237260,1.3418,4341.5,4341.4,0.8802]
[1759333237563,1.3418,4341.5,4341.4,0.6422]
[1759333237760,1.3418,4341.5,4341.4,0.8802]
[1759333237971,1.3418,4341.5,4341.4,41.3671]
[1759333238668,6.3418,4341.5,4341.1,3.21070313]
[1759333238867,1.1459,4340.4,4340.1,3.2078]
[1759333239164,1.1459,4340.4,4340.3,41.04822]
[1759333239378,1.1459,4340.4,4340.3,0.01022]
[1759333239670,1.1459,4340.4,4340.3,0.24822]
[1759333239862,1.1459,4340.4,4340.3,0.89266191]
[1759333240066,1.1459,4340.4,4340.3,1.30156191]
[1759333240265,0.5099,4340.4,4340.3,1.30156191]
[1759333240569,0.822,4340.6,4340.5,0.6422]
[1759333241072,3.2078,4341.7,4340.8,1.0511]
[1759333241262,1.1459,4341.4,4341.3,0.3291]
[1759333241466,1.1459,4341.4,4341.3,0.5671]
[1759333241668,1.1459,4341.4,4341.3,0.238]
[1759333243672,0.822,4340.8,4340.7,40.8]
[1759333243872,0.822,4340.8,4340.7,41.4469]
[1759333244672,0.5099,4340.8,4340.7,41.4469]
[1759333246075,0.5099,4340.8,4340.7,41.038]
[1759333246873,0.1959,4341.0,4340.9,0.6422]
[1759333247173,3.7177,4341.2,4341.0,0.4089]
[1759333247377,4.0298,4341.2,4341.1,0.8802]
[1759333247872,3.2078,4341.9,4341.2,0.4089]
[1759333248065,0.1959,4342.0,4341.8,0.4089]
[1759333248273,0.1959,4342.0,4341.9,0.8802]
[1759333248274,0.8319,4342.0,4341.9,0.8802]
[1759333248474,0.8319,4342.0,4341.9,41.6802]
[1759333248674,1.3418,4342.0,4341.9,41.6802]
[1759333248876,1.0179,4342.0,4341.9,42.0891]
[1759333249178,0.5099,4342.0,4341.9,42.0891]
[1759333249977,0.7058,4342.0,4341.9,42.0891]
[1759333250176,0.7058,4342.0,4341.9,41.6802]
[1759333252173,1.1459,4341.7,4341.6,3.2078]
[1759333252478,1.1459,4341.7,4341.6,0.8802]
[1759333252674,1.1459,4341.7,4341.6,41.6802]
[1759333253175,1.1459,4341.7,4341.6,0.8802]
[1759333254073,1.1459,4341.7,4341.6,0.5671]
[1759333255682,1.1493,4341.4,4341.3,40.8]
[1759333255882,1.1493,4341.4,4341.3,41.038]
[1759333257091,0.5011,4341.4,4341.3,41.4564]
[1759333257384,0.8244,4341.8,4341.7,0.6332]
[1759333257576,1.1493,4341.8,4341.7,0.6332]
[1759333258177,0.8244,4341.8,4341.7,1.0516]
[1759333258581,0.8244,4341.8,4341.7,0.6332]
[1759333259278,0.1959,4342.0,4341.7,1.0516]
[1759333259580,0.5011,4342.0,4341.9,1.0516]
[1759333259779,0.8244,4342.0,4341.9,1.0516]
[1759333260276,0.5011,4342.3,4342.0,0.4184]
[1759333260481,0.8244,4342.3,4342.2,1.0516]
[1759333260679,0.8244,4342.3,4342.2,1.2896]
[1759333261781,0.8244,4342.3,4342.2,0.8712]
[1759333262185,0.8244,4342.3,4342.2,1.2896]
[1759333262579,0.8244,4342.3,4342.2,0.8712]
[1759333263178,1.1493,4342.3,4342.2,0.8712]
[1759333263383,3.4037,4343.0,4342.2,1.2896]
[1759333263584,0.5011,4342.9,4342.2,1.0516]
[1759333263785,0.5011,4342.9,4342.4,0.4184]
[1759333263983,0.6482,4342.8,4342.7,0.6332]
[1759333264184,0.6482,4342.8,4342.7,0.8712]
[1759333264591,1.1493,4342.8,4342.7,0.8712]
[1759333265089,1.1493,4342.8,4342.7,0.6332]
[1759333265386,1.1493,4342.8,4342.7,0.5537]
[1759333265589,0.5011,4342.7,4342.5,40.8]
[1759333265788,1.1493,4342.7,4342.6,0.238]
[1759333265983,0.5011,4342.6,4342.5,40.8]
[1759333266186,0.5011,4342.6,4342.5,41.038]
[1759333266496,0.5011,4342.4,4341.7,0.4184]
[1759333266682,0.8244,4341.9,4341.8,0.8712]
[1759333266882,0.8244,4341.9,4341.8,42.0896]
[1759333267085,0.8244,4341.9,4341.8,41.4332]
[1759333267388,0.8244,4341.9,4341.8,41.6712]
[1759333268586,0.6482,4341.9,4341.1,0.4184]
[1759333268784,0.8244,4341.3,4341.2,0.6332]
[1759333269090,0.8244,4341.3,4341.2,41.4332]
[1759333269290,0.8244,4341.3,4341.2,41.6712]
[1759333269484,0.8244,4341.3,4341.2,41.4332]
[1759333269785,1.1493,4341.3,4341.2,0.5537]
[1759333269984,1.1493,4341.3,4341.2,0.3157]
[1759333270178,1.1493,4341.3,4341.2,0.5537]
[1759333271179,1.1493,4341.3,4341.2,0.3157]
[1759333271384,1.1493,4341.3,4341.2,0.5537]
[1759333272179,1.1493,4341.3,4341.2,0.8712]
[1759333272785,0.7024,4341.5,4341.2,0.8712]
[1759333273087,0.7024,4341.5,4341.4,1.0516]
[1759333273287,1.0257,4341.5,4341.4,1.2896]
[1759333273490,1.3506,4341.5,4341.4,0.8712]
[1759333274091,1.3506,4341.5,4341.4,0.5537]
[1759333274291,1.3506,4341.5,4341.4,0.3157]
[1759333274493,1.3506,4341.5,4341.4,0.8712]
[1759333274791,1.3506,4341.5,4341.4,1.2896]
[1759333275387,1.3506,4341.5,4341.4,0.8712]
[1759333279192,1.3506,4341.5,4341.4,0.5537]
[1759333279794,1.3506,4341.5,4341.4,0.3157]
[1759333280092,1.3506,4341.5,4341.4,0.5537]
[1759333281596,1.3506,4341.5,4341.4,0.8827]
[1759333282095,1.3506,4341.5,4341.4,0.5537]
[1759333282393,1.3506,4341.5,4341.4,0.238]
[1759333283090,1.3506,4341.5,4341.4,0.5689]
[1759333283292,0.5011,4341.5,4341.4,1.3008]
[1759333284385,0.812,4341.5,4341.4,1.3008]
[1759333284991,1.3426,4341.5,4341.4,0.8979]
[1759333285397,1.3426,4341.5,4341.4,41.6979]
[1759333285595,1.3426,4341.5,4341.4,42.099]
[1759333290101,1.3426,4341.5,4341.4,41.6979]
[1759333291196,0.493,4341.4,4341.0,3.2078]
[1759333291400,1.1438,4341.1,4341.0,3.5202]
[1759333291600,1.1438,4341.1,4341.0,44.5582]
[1759333291792,1.1438,4341.1,4341.0,44.9593]
[1759333292501,0.493,4341.9,4341.4,1.0269]
[1759333292702,1.1438,4341.9,4341.8,0.6258]
[1759333292902,1.67973569,4341.9,4341.8,0.238]
[1759333294409,1.67973569,4341.9,4341.8,0.5504]
[1759333294616,1.67973569,4341.9,4341.8,0.8638]
[1759333294805,1.67973569,4341.9,4341.8,0.5504]
[1759333297909,1.67973569,4341.9,4341.8,0.238]
[1759333298209,0.5306,4341.5,4341.4,0.6258]
[1759333298504,1.3345,4341.5,4341.4,0.8638]
[1759333298810,0.493,4341.5,4341.4,1.2649]
[1759333300304,0.8039,4341.5,4341.4,1.2649]
[1759333300906,0.493,4341.5,4341.4,1.2649]
[1759333301104,0.493,4341.9,4341.8,0.3134]
[1759333301305,0.8039,4341.9,4341.8,0.8638]
[1759333302110,0.8039,4341.9,4341.8,1.2649]
[1759333302304,0.8039,4341.9,4341.8,0.8638]
[1759333302704,1.1438,4341.9,4341.8,0.8638]
[1759333305206,1.1438,4341.9,4341.8,0.5504]
[1759333306809,1.67829986,4341.9,4341.8,0.3124]
[1759333307114,1.67829986,4341.9,4341.8,0.5494]
[1759333307312,1.67829986,4341.9,4341.3,0.4011]
[1759333307611,1.3345,4341.5,4341.4,0.8628]
[1759333312018,1.03581,4341.4,4340.6,1.64433346]
[1759333312317,3.2078,4340.5,4339.5,0.1986]
[1759333312511,3.2078,4339.6,4338.5,0.1986]
[1759333312711,3.2078,4338.6,4338.5,0.1986]
[1759333313011,3.76598376,4338.6,4338.5,0.1986]
[1759333313216,3.7679779,4338.6,4338.5,0.20030243]
[1759333313409,0.5601779,4338.6,4338.5,0.51270243]
[1759333313612,3.7679779,4338.6,4338.5,0.87200243]
[1759333314515,3.7679779,4338.6,4338.5,1.39840243]
[1759333317421,3.20979414,4338.6,4338.5,42.43940243]
[1759333318719,3.20979414,4338.6,4338.5,1.63940243]
[1759333319722,3.88218744,4338.6,4338.5,0.72670243]
[1759333321821,3.88218744,4338.6,4338.5,1.10070243]
[1759333325728,3.88218744,4338.6,4338.5,0.72670243]
[1759333329923,3.88218744,4338.6,4338.5,1.10070243]